[Event "January 9 Late 2024"]
[Site "https://www.chess.com"]
[Date "2024.01.09"]
[Round "8"]
[White "Chigaev, Maksim"]
[Black "Bluebaum, Matthias"]
[Result "1/2-1/2"]
[Board "9"]
[TimeControl "180+1"]
[WhiteFideId "4108116"]
[BlackFideId "24651516"]
[WhiteElo "2987"]
[BlackElo "3083"]
[WhiteTeam "ESP"]
[BlackTeam "GER"]
[WhiteClock "0:00:04"]
[BlackClock "0:00:11"]

1. c4 {[%clk 0:03:00]}  e6 {[%clk 0:03:00]} 2. g3 {[%clk 0:03:01]}  d5 {[%clk 0:03:01]} 3. Bg2 {[%clk 0:03:01]}  Nf6 {[%clk 0:03:01]} 4. Nf3 {[%clk 0:03:01]}  Nc6 {[%clk 0:03:02]} 5. O-O {[%clk 0:02:57]}  Bd6 {[%clk 0:03:03]} 6. b3 {[%clk 0:02:51]}  O-O {[%clk 0:03:03]} 7. d4 {[%clk 0:02:50]}  dxc4 {[%clk 0:03:00]} 8. bxc4 {[%clk 0:02:51]}  e5 {[%clk 0:03:01]} 9. c5 {[%clk 0:02:40]}  Be7 {[%clk 0:03:01]} 10. Nxe5 {[%clk 0:02:37]}  Nxd4 {[%clk 0:02:58]} 11. e3 {[%clk 0:02:17]}  Ne6 {[%clk 0:02:57]} 12. c6 {[%clk 0:02:12]}  Qxd1 {[%clk 0:02:47]} 13. Rxd1 {[%clk 0:02:13]}  b5 {[%clk 0:02:48]} 14. Nc3 {[%clk 0:02:03]}  b4 {[%clk 0:02:37]} 15. Nd5 {[%clk 0:02:03]}  Nxd5 {[%clk 0:02:34]} 16. Bxd5 {[%clk 0:02:04]}  a5 {[%clk 0:02:27]} 17. Bb2 {[%clk 0:01:55]}  a4 {[%clk 0:02:22]} 18. Rac1 {[%clk 0:01:53]}  Ra5 {[%clk 0:02:16]} 19. f4 {[%clk 0:01:38]}  Nc5 {[%clk 0:01:43]} 20. Kf2 {[%clk 0:01:25]}  Be6 {[%clk 0:01:32]} 21. Bxe6 {[%clk 0:01:17]}  fxe6 {[%clk 0:01:33]} 22. Nd7 {[%clk 0:00:54]}  Rd8 {[%clk 0:01:27]} 23. Be5 {[%clk 0:00:55]}  Na6 {[%clk 0:01:09]} 24. Kf3 {[%clk 0:00:52]}  b3 {[%clk 0:01:03]} 25. axb3 {[%clk 0:00:50]}  axb3 {[%clk 0:01:04]} 26. Rb1 {[%clk 0:00:44]}  Rb5 {[%clk 0:01:05]} 27. Rd3 {[%clk 0:00:42]}  Nc5 {[%clk 0:00:39]} 28. Nxc5 {[%clk 0:00:40]}  Rxc5 {[%clk 0:00:40]} 29. Rxd8+ {[%clk 0:00:33]}  Bxd8 {[%clk 0:00:40]} 30. Rxb3 {[%clk 0:00:32]}  Bf6 {[%clk 0:00:41]} 31. Bxc7 {[%clk 0:00:17]}  Rxc6 {[%clk 0:00:42]} 32. Ba5 {[%clk 0:00:16]}  Rc5 {[%clk 0:00:33]} 33. Rb8+ {[%clk 0:00:10]}  Kf7 {[%clk 0:00:34]} 34. Be1 {[%clk 0:00:11]}  g5 {[%clk 0:00:25]} 35. h3 {[%clk 0:00:10]}  h5 {[%clk 0:00:24]} 36. Rb7+ {[%clk 0:00:08]}  Kg6 {[%clk 0:00:25]} 37. Rb6 {[%clk 0:00:07]}  Kf7 {[%clk 0:00:25]} 38. Rb3 {[%clk 0:00:08]}  Kg6 {[%clk 0:00:15]} 39. Rd3 {[%clk 0:00:06]}  e5 {[%clk 0:00:13]} 40. fxg5 {[%clk 0:00:04]}  Bxg5 {[%clk 0:00:13]} 41. Rd6+ {[%clk 0:00:05]}  Kf7 {[%clk 0:00:12]} 42. h4 {[%clk 0:00:04]}  Bf6 {[%clk 0:00:09]} 43. Rd3 {[%clk 0:00:04]}  Rc4 {[%clk 0:00:10]} 44. e4 {[%clk 0:00:04]}  Ra4 {[%clk 0:00:09]} 45. Bf2 {[%clk 0:00:05]}  Be7 {[%clk 0:00:09]} 46. Be3 {[%clk 0:00:05]}  Ke6 {[%clk 0:00:09]} 47. Rb3 {[%clk 0:00:05]}  Bd6 {[%clk 0:00:08]} 48. Rc3 {[%clk 0:00:05]}  Rb4 {[%clk 0:00:08]} 49. Rc6 {[%clk 0:00:05]}  Rb3 {[%clk 0:00:08]} 50. Ke2 {[%clk 0:00:04]}  Rb2+ {[%clk 0:00:09]} 51. Kf3 {[%clk 0:00:05]}  Rb3 {[%clk 0:00:09]} 52. Rb6 {[%clk 0:00:04]}  Ra3 {[%clk 0:00:09]} 53. Ke2 {[%clk 0:00:04]}  Ra2+ {[%clk 0:00:09]} 54. Kf3 {[%clk 0:00:04]}  Ra3 {[%clk 0:00:10]} 55. Ke2 {[%clk 0:00:04]}  Ra2+ {[%clk 0:00:10]} 56. Kf3 {[%clk 0:00:04]}  Ra3 {[%clk 0:00:11]} 1/2-1/2

[Event "January 9 Late 2024"]
[Site "https://www.chess.com"]
[Date "2024.01.09"]
[Round "8"]
[White "Fedoseev, Vladimir"]
[Black "Zhigalko, Sergei"]
[Result "0-1"]
[Board "10"]
[TimeControl "180+1"]
[WhiteFideId "24130737"]
[BlackFideId "13502956"]
[WhiteElo "3050"]
[BlackElo "2943"]
[WhiteTeam "SLO"]
[BlackTeam "BLR"]
[WhiteClock "0:00:00"]
[BlackClock "0:00:02"]

1. c4 {[%clk 0:03:00]}  e5 {[%clk 0:03:00]} 2. g3 {[%clk 0:03:00]}  Nf6 {[%clk 0:03:00]} 3. Bg2 {[%clk 0:03:01]}  c6 {[%clk 0:03:00]} 4. d4 {[%clk 0:02:59]}  exd4 {[%clk 0:03:01]} 5. Qxd4 {[%clk 0:02:59]}  Na6 {[%clk 0:03:01]} 6. Nf3 {[%clk 0:02:57]}  Bc5 {[%clk 0:03:02]} 7. Qd1 {[%clk 0:02:56]}  O-O {[%clk 0:03:01]} 8. O-O {[%clk 0:02:56]}  Re8 {[%clk 0:03:02]} 9. Nc3 {[%clk 0:02:55]}  Bf8 {[%clk 0:03:01]} 10. Nd4 {[%clk 0:02:48]}  Nc5 {[%clk 0:02:57]} 11. Qc2 {[%clk 0:02:46]}  a5 {[%clk 0:02:56]} 12. b3 {[%clk 0:02:43]}  d6 {[%clk 0:02:52]} 13. e4 {[%clk 0:02:39]}  g6 {[%clk 0:02:50]} 14. Bb2 {[%clk 0:02:36]}  Bg7 {[%clk 0:02:47]} 15. Rad1 {[%clk 0:02:36]}  Qb6 {[%clk 0:02:37]} 16. h3 {[%clk 0:02:25]}  h5 {[%clk 0:02:26]} 17. Rfe1 {[%clk 0:02:18]}  a4 {[%clk 0:02:08]} 18. Nxa4 {[%clk 0:02:12]}  Nxa4 {[%clk 0:02:07]} 19. bxa4 {[%clk 0:02:13]}  Qa6 {[%clk 0:02:06]} 20. Nb3 {[%clk 0:02:10]}  Qxa4 {[%clk 0:01:49]} 21. Rxd6 {[%clk 0:02:09]}  Be6 {[%clk 0:01:50]} 22. Rc1 {[%clk 0:02:04]}  Qb4 {[%clk 0:01:24]} 23. e5 {[%clk 0:01:47]}  Nd7 {[%clk 0:01:20]} 24. a3 {[%clk 0:01:41]}  Qb6 {[%clk 0:00:57]} 25. c5 {[%clk 0:01:26]}  Qc7 {[%clk 0:00:40]} 26. Nd4 {[%clk 0:01:16]}  Nf8 {[%clk 0:00:29]} 27. f4 {[%clk 0:01:12]}  Bc8 {[%clk 0:00:23]} 28. h4 {[%clk 0:01:04]}  Ne6 {[%clk 0:00:23]} 29. Nxe6 {[%clk 0:00:32]}  Bxe6 {[%clk 0:00:22]} 30. Be4 {[%clk 0:00:33]}  Bg4 {[%clk 0:00:05]} 31. Kh2 {[%clk 0:00:31]}  Qa5 {[%clk 0:00:04]} 32. Bd3 {[%clk 0:00:24]}  Bf8 {[%clk 0:00:04]} 33. Bc4 {[%clk 0:00:20]}  Kg7 {[%clk 0:00:01]} 34. e6+ {[%clk 0:00:18]}  f6 {[%clk 0:00:01]} 35. Rd7+ {[%clk 0:00:18]}  Re7 {[%clk 0:00:01]} 36. Qd3 {[%clk 0:00:11]}  Qxc5 {[%clk 0:00:02]} 37. Bb3 {[%clk 0:00:00]}  Qf2+ {[%clk 0:00:02]} 0-1

[Event "January 9 Late 2024"]
[Site "https://www.chess.com"]
[Date "2024.01.09"]
[Round "8"]
[White "Oparin, Grigoriy"]
[Black "Fressinet, Laurent"]
[Result "1-0"]
[Board "12"]
[TimeControl "180+1"]
[WhiteFideId "24125890"]
[BlackFideId "608742"]
[WhiteElo "3060"]
[BlackElo "2972"]
[WhiteTeam "USA"]
[BlackTeam "FRA"]
[WhiteClock "0:00:26"]
[BlackClock "0:00:01"]

1. e4 {[%clk 0:03:00]}  c5 {[%clk 0:02:57]} 2. Nf3 {[%clk 0:03:00]}  Nc6 {[%clk 0:02:57]} 3. Nc3 {[%clk 0:02:58]}  Nf6 {[%clk 0:02:57]} 4. Bb5 {[%clk 0:02:57]}  Qc7 {[%clk 0:02:57]} 5. O-O {[%clk 0:02:57]}  Nd4 {[%clk 0:02:57]} 6. Re1 {[%clk 0:02:57]}  Ng4 {[%clk 0:02:54]} 7. g3 {[%clk 0:02:47]}  Nxf3+ {[%clk 0:02:52]} 8. Qxf3 {[%clk 0:02:47]}  Ne5 {[%clk 0:02:52]} 9. Qg2 {[%clk 0:02:46]}  e6 {[%clk 0:02:49]} 10. f4 {[%clk 0:02:38]}  Nc6 {[%clk 0:02:45]} 11. Bf1 {[%clk 0:02:37]}  a6 {[%clk 0:02:42]} 12. d3 {[%clk 0:02:33]}  Nd4 {[%clk 0:02:41]} 13. Be3 {[%clk 0:02:32]}  b5 {[%clk 0:02:41]} 14. Qf2 {[%clk 0:02:31]}  Bb7 {[%clk 0:02:40]} 15. Bg2 {[%clk 0:02:27]}  Be7 {[%clk 0:02:39]} 16. Rac1 {[%clk 0:02:26]}  h5 {[%clk 0:02:16]} 17. h4 {[%clk 0:02:22]}  g6 {[%clk 0:01:57]} 18. Kh2 {[%clk 0:02:20]}  O-O {[%clk 0:01:43]} 19. Bxd4 {[%clk 0:02:10]}  cxd4 {[%clk 0:01:44]} 20. Ne2 {[%clk 0:02:10]}  Rac8 {[%clk 0:01:39]} 21. Nxd4 {[%clk 0:02:08]}  Bc5 {[%clk 0:01:38]} 22. c3 {[%clk 0:02:09]}  e5 {[%clk 0:01:27]} 23. fxe5 {[%clk 0:02:09]}  Qxe5 {[%clk 0:01:28]} 24. Rf1 {[%clk 0:01:52]}  b4 {[%clk 0:01:25]} 25. Nf3 {[%clk 0:01:49]}  Bxf2 {[%clk 0:01:03]} 26. Nxe5 {[%clk 0:01:49]}  Be3 {[%clk 0:01:03]} 27. Rc2 {[%clk 0:01:49]}  Bd4 {[%clk 0:00:57]} 28. Nc4 {[%clk 0:01:40]}  bxc3 {[%clk 0:00:54]} 29. bxc3 {[%clk 0:01:41]}  Bc5 {[%clk 0:00:51]} 30. e5 {[%clk 0:01:41]}  Bc6 {[%clk 0:00:44]} 31. Bxc6 {[%clk 0:01:39]}  Rxc6 {[%clk 0:00:45]} 32. Rb1 {[%clk 0:01:31]}  f6 {[%clk 0:00:44]} 33. Rf1 {[%clk 0:01:26]}  Be7 {[%clk 0:00:41]} 34. exf6 {[%clk 0:01:24]}  Rfxf6 {[%clk 0:00:41]} 35. Kg2 {[%clk 0:01:14]}  Rfe6 {[%clk 0:00:33]} 36. Na5 {[%clk 0:01:05]}  Rc7 {[%clk 0:00:31]} 37. Nb3 {[%clk 0:01:05]}  Bf6 {[%clk 0:00:28]} 38. c4 {[%clk 0:01:03]}  Kg7 {[%clk 0:00:27]} 39. Rff2 {[%clk 0:01:01]}  Re3 {[%clk 0:00:26]} 40. Rf3 {[%clk 0:01:02]}  Re1 {[%clk 0:00:25]} 41. Kf2 {[%clk 0:01:00]}  Re6 {[%clk 0:00:24]} 42. Re2 {[%clk 0:01:00]}  Rxe2+ {[%clk 0:00:22]} 43. Kxe2 {[%clk 0:01:00]}  a5 {[%clk 0:00:20]} 44. Nxa5 {[%clk 0:00:51]}  Ra7 {[%clk 0:00:20]} 45. Nb3 {[%clk 0:00:52]}  Rxa2+ {[%clk 0:00:21]} 46. Ke3 {[%clk 0:00:52]}  g5 {[%clk 0:00:15]} 47. hxg5 {[%clk 0:00:51]}  Bxg5+ {[%clk 0:00:16]} 48. Ke4 {[%clk 0:00:50]}  Kg6 {[%clk 0:00:17]} 49. Nc5 {[%clk 0:00:49]}  d6 {[%clk 0:00:15]} 50. Ne6 {[%clk 0:00:47]}  Be7 {[%clk 0:00:12]} 51. d4 {[%clk 0:00:42]}  Re2+ {[%clk 0:00:11]} 52. Kd5 {[%clk 0:00:43]}  Re1 {[%clk 0:00:09]} 53. Nc7 {[%clk 0:00:30]}  Kg5 {[%clk 0:00:09]} 54. Rf7 {[%clk 0:00:27]}  Kg4 {[%clk 0:00:07]} 55. Rg7+ {[%clk 0:00:27]}  Kf3 {[%clk 0:00:08]} 56. Ne6 {[%clk 0:00:25]}  Bf6 {[%clk 0:00:05]} 57. Rf7 {[%clk 0:00:26]}  Kxg3 {[%clk 0:00:06]} 58. Rxf6 {[%clk 0:00:26]}  h4 {[%clk 0:00:07]} 59. Rg6+ {[%clk 0:00:26]}  Kf3 {[%clk 0:00:06]} 60. Kxd6 {[%clk 0:00:26]}  Rd1 {[%clk 0:00:02]} 61. d5 {[%clk 0:00:26]}  h3 {[%clk 0:00:01]} 62. Ng5+ {[%clk 0:00:26]} 1-0

[Event "January 9 Late 2024"]
[Site "https://www.chess.com"]
[Date "2024.01.09"]
[Round "8"]
[White "Nguyen, Ngoc Truong Son"]
[Black "Pranav, V"]
[Result "0-1"]
[Board "14"]
[TimeControl "180+1"]
[WhiteFideId "12401110"]
[BlackFideId "25060783"]
[WhiteElo "2951"]
[BlackElo "3037"]
[WhiteTeam "VIE"]
[BlackTeam "IND"]
[WhiteClock "0:00:00"]
[BlackClock "0:01:27"]

1. d4 {[%clk 0:03:00]}  Nf6 {[%clk 0:02:58]} 2. c4 {[%clk 0:03:00]}  e6 {[%clk 0:02:58]} 3. Nc3 {[%clk 0:03:00]}  Bb4 {[%clk 0:02:57]} 4. e3 {[%clk 0:02:56]}  O-O {[%clk 0:02:56]} 5. Bd3 {[%clk 0:02:54]}  d5 {[%clk 0:02:55]} 6. Nf3 {[%clk 0:02:50]}  b6 {[%clk 0:02:53]} 7. Bd2 {[%clk 0:02:47]}  Bb7 {[%clk 0:02:52]} 8. cxd5 {[%clk 0:02:42]}  exd5 {[%clk 0:02:51]} 9. Qc2 {[%clk 0:02:30]}  Nbd7 {[%clk 0:02:48]} 10. O-O-O {[%clk 0:02:24]}  c5 {[%clk 0:02:46]} 11. Kb1 {[%clk 0:02:23]}  Rc8 {[%clk 0:02:45]} 12. g4 {[%clk 0:02:15]}  cxd4 {[%clk 0:02:38]} 13. Nxd4 {[%clk 0:02:10]}  Ne5 {[%clk 0:02:35]} 14. Bf5 {[%clk 0:02:07]}  Rc7 {[%clk 0:02:30]} 15. g5 {[%clk 0:01:39]}  Ne4 {[%clk 0:02:28]} 16. Nxe4 {[%clk 0:01:32]}  Rxc2 {[%clk 0:02:22]} 17. Bxb4 {[%clk 0:01:29]}  Rc7 {[%clk 0:01:57]} 18. Bxf8 {[%clk 0:00:23]}  Qxf8 {[%clk 0:01:57]} 19. Nd2 {[%clk 0:00:19]}  g6 {[%clk 0:01:55]} 20. Bc2 {[%clk 0:00:17]}  Ba6 {[%clk 0:01:55]} 21. N2b3 {[%clk 0:00:07]}  Qc8 {[%clk 0:01:51]} 22. h4 {[%clk 0:00:06]}  Nf3 {[%clk 0:01:42]} 23. Nxf3 {[%clk 0:00:04]}  Rxc2 {[%clk 0:01:42]} 24. Rd2 {[%clk 0:00:04]}  Rxd2 {[%clk 0:01:39]} 25. Nbxd2 {[%clk 0:00:05]}  Bd3+ {[%clk 0:01:36]} 26. Ka1 {[%clk 0:00:05]}  Qf5 {[%clk 0:01:36]} 27. Rh2 {[%clk 0:00:03]}  Be4 {[%clk 0:01:27]} 28. Nd4 {[%clk 0:00:00]}  Qg4 {[%clk 0:01:27]} 0-1

[Event "January 9 Late 2024"]
[Site "https://www.chess.com"]
[Date "2024.01.09"]
[Round "8"]
[White "Bellahcene, Bilel"]
[Black "Makarian, Rudik"]
[Result "1/2-1/2"]
[Board "18"]
[TimeControl "180+1"]
[WhiteFideId "696358"]
[BlackFideId "44105681"]
[WhiteElo "2616"]
[BlackElo "3069"]
[WhiteTeam "ALG"]
[BlackTeam "FID"]
[WhiteClock "0:00:10"]
[BlackClock "0:00:05"]

1. e4 {[%clk 0:03:00]}  c5 {[%clk 0:03:00]} 2. Nf3 {[%clk 0:02:59]}  d6 {[%clk 0:03:00]} 3. d4 {[%clk 0:02:59]}  cxd4 {[%clk 0:03:01]} 4. Nxd4 {[%clk 0:03:00]}  Nf6 {[%clk 0:03:02]} 5. Nc3 {[%clk 0:03:00]}  Nc6 {[%clk 0:03:02]} 6. h3 {[%clk 0:02:55]}  e6 {[%clk 0:03:00]} 7. Be3 {[%clk 0:02:54]}  Be7 {[%clk 0:02:57]} 8. g4 {[%clk 0:02:53]}  h6 {[%clk 0:02:57]} 9. Qe2 {[%clk 0:02:52]}  Nxd4 {[%clk 0:02:54]} 10. Bxd4 {[%clk 0:02:51]}  e5 {[%clk 0:02:55]} 11. Be3 {[%clk 0:02:50]}  Be6 {[%clk 0:02:56]} 12. Qb5+ {[%clk 0:02:49]}  Qd7 {[%clk 0:02:50]} 13. O-O-O {[%clk 0:02:40]}  a6 {[%clk 0:02:43]} 14. Qxd7+ {[%clk 0:02:40]}  Bxd7 {[%clk 0:02:42]} 15. f4 {[%clk 0:02:26]}  Bc6 {[%clk 0:02:39]} 16. Bg2 {[%clk 0:02:19]}  Nd7 {[%clk 0:02:20]} 17. f5 {[%clk 0:02:08]}  b5 {[%clk 0:02:18]} 18. h4 {[%clk 0:02:08]}  b4 {[%clk 0:02:17]} 19. Nd5 {[%clk 0:02:08]}  Bxd5 {[%clk 0:02:17]} 20. exd5 {[%clk 0:01:57]}  Bd8 {[%clk 0:02:17]} 21. g5 {[%clk 0:01:54]}  Bb6 {[%clk 0:02:16]} 22. Bd2 {[%clk 0:01:50]}  a5 {[%clk 0:02:16]} 23. Bf1 {[%clk 0:01:41]}  hxg5 {[%clk 0:02:12]} 24. Bxg5 {[%clk 0:01:40]}  f6 {[%clk 0:02:07]} 25. Bd2 {[%clk 0:01:39]}  Ke7 {[%clk 0:02:07]} 26. Bb5 {[%clk 0:01:38]}  Rh5 {[%clk 0:01:55]} 27. Rdf1 {[%clk 0:01:35]}  Rah8 {[%clk 0:01:54]} 28. Be1 {[%clk 0:01:35]}  R8h7 {[%clk 0:01:36]} 29. Be2 {[%clk 0:01:35]}  R5h6 {[%clk 0:01:32]} 30. h5 {[%clk 0:01:35]}  Be3+ {[%clk 0:01:32]} 31. Kb1 {[%clk 0:01:35]}  Nc5 {[%clk 0:01:31]} 32. Rh3 {[%clk 0:01:31]}  Bg5 {[%clk 0:01:27]} 33. a3 {[%clk 0:01:31]}  Ne4 {[%clk 0:00:55]} 34. axb4 {[%clk 0:01:19]}  axb4 {[%clk 0:00:56]} 35. Bxb4 {[%clk 0:01:13]}  Bd2 {[%clk 0:00:57]} 36. Ba3 {[%clk 0:01:12]}  Bf4 {[%clk 0:00:56]} 37. Ka2 {[%clk 0:01:06]}  Ng3 {[%clk 0:00:56]} 38. Rxg3 {[%clk 0:01:04]}  Bxg3 {[%clk 0:00:56]} 39. Rg1 {[%clk 0:01:03]}  Bf4 {[%clk 0:00:55]} 40. b4 {[%clk 0:01:01]}  e4 {[%clk 0:00:49]} 41. Rg4 {[%clk 0:00:58]}  Be5 {[%clk 0:00:48]} 42. Rxe4 {[%clk 0:00:53]}  Rxh5 {[%clk 0:00:46]} 43. Bxh5 {[%clk 0:00:53]}  Rxh5 {[%clk 0:00:47]} 44. b5 {[%clk 0:00:54]}  Rxf5 {[%clk 0:00:43]} 45. b6 {[%clk 0:00:53]}  Rh5 {[%clk 0:00:35]} 46. Ra4 {[%clk 0:00:45]}  Kd7 {[%clk 0:00:31]} 47. Ra7+ {[%clk 0:00:45]}  Kc8 {[%clk 0:00:32]} 48. Rxg7 {[%clk 0:00:45]}  f5 {[%clk 0:00:31]} 49. Rf7 {[%clk 0:00:32]}  f4 {[%clk 0:00:31]} 50. Kb3 {[%clk 0:00:30]}  Rh3+ {[%clk 0:00:20]} 51. Ka4 {[%clk 0:00:30]}  Rc3 {[%clk 0:00:16]} 52. Bb4 {[%clk 0:00:30]}  Rxc2 {[%clk 0:00:16]} 53. Kb5 {[%clk 0:00:30]}  Kb8 {[%clk 0:00:14]} 54. Ba5 {[%clk 0:00:29]}  Bc3 {[%clk 0:00:12]} 55. Rxf4 {[%clk 0:00:16]}  Bxa5 {[%clk 0:00:09]} 56. Kxa5 {[%clk 0:00:17]}  Rc1 {[%clk 0:00:09]} 57. Rf8+ {[%clk 0:00:15]}  Kb7 {[%clk 0:00:09]} 58. Rf7+ {[%clk 0:00:16]}  Kb8 {[%clk 0:00:10]} 59. Ka6 {[%clk 0:00:16]}  Ra1+ {[%clk 0:00:10]} 60. Kb5 {[%clk 0:00:17]}  Rc1 {[%clk 0:00:11]} 61. Rf6 {[%clk 0:00:15]}  Kb7 {[%clk 0:00:09]} 62. Rf7+ {[%clk 0:00:14]}  Kb8 {[%clk 0:00:09]} 63. Rd7 {[%clk 0:00:15]}  Kc8 {[%clk 0:00:06]} 64. Rxd6 {[%clk 0:00:14]}  Rb1+ {[%clk 0:00:06]} 65. Kc5 {[%clk 0:00:14]}  Rc1+ {[%clk 0:00:07]} 66. Kd4 {[%clk 0:00:15]}  Kb7 {[%clk 0:00:07]} 67. Re6 {[%clk 0:00:14]}  Rd1+ {[%clk 0:00:06]} 68. Ke5 {[%clk 0:00:14]}  Rh1 {[%clk 0:00:07]} 69. Kf6 {[%clk 0:00:14]}  Rh6+ {[%clk 0:00:07]} 70. Kg7 {[%clk 0:00:14]}  Rh5 {[%clk 0:00:06]} 71. Rd6 {[%clk 0:00:13]}  Rf5 {[%clk 0:00:05]} 72. Kg6 {[%clk 0:00:13]}  Rf1 {[%clk 0:00:05]} 73. Rf6 {[%clk 0:00:13]}  Rd1 {[%clk 0:00:05]} 74. Rd6 {[%clk 0:00:12]}  Rf1 {[%clk 0:00:05]} 75. Kg5 {[%clk 0:00:11]}  Rf2 {[%clk 0:00:06]} 76. Rg6 {[%clk 0:00:10]}  Rd2 {[%clk 0:00:05]} 77. Rd6 {[%clk 0:00:10]}  Rf2 {[%clk 0:00:05]} 78. Kg6 {[%clk 0:00:10]}  Rf1 {[%clk 0:00:05]} 1/2-1/2

[Event "January 9 Late 2024"]
[Site "https://www.chess.com"]
[Date "2024.01.09"]
[Round "8"]
[White "Lagarde, Maxime"]
[Black "Kollars, Dmitrij"]
[Result "0-1"]
[Board "22"]
[TimeControl "180+1"]
[WhiteFideId "662399"]
[BlackFideId "12909572"]
[WhiteElo "2836"]
[BlackElo "2966"]
[WhiteTeam "FRA"]
[BlackTeam "GER"]
[WhiteClock "0:02:44"]
[BlackClock "0:02:41"]

1. d4 {[%clk 0:03:00]}  Nf6 {[%clk 0:02:59]} 2. Bg5 {[%clk 0:03:01]}  d5 {[%clk 0:02:59]} 3. Nd2 {[%clk 0:02:59]}  c5 {[%clk 0:02:59]} 4. dxc5 {[%clk 0:02:57]}  e6 {[%clk 0:02:59]} 5. e4 {[%clk 0:02:57]}  Bxc5 {[%clk 0:03:00]} 6. e5 {[%clk 0:02:55]}  Qb6 {[%clk 0:03:00]} 7. exf6 {[%clk 0:02:54]}  Bxf2+ {[%clk 0:03:00]} 8. Ke2 {[%clk 0:02:54]}  e5 {[%clk 0:02:59]} 9. fxg7 {[%clk 0:02:49]}  Rg8 {[%clk 0:02:59]} 10. Ne4 {[%clk 0:02:48]}  dxe4 {[%clk 0:02:43]} 11. Bd8 {[%clk 0:02:44]}  Qe3# {[%clk 0:02:41]} 0-1

[Event "January 9 Late 2024"]
[Site "https://www.chess.com"]
[Date "2024.01.09"]
[Round "8"]
[White "Velikanov, Alexander"]
[Black "Shankland, Sam"]
[Result "1-0"]
[Board "23"]
[TimeControl "180+1"]
[WhiteFideId "2039290"]
[BlackFideId "2004887"]
[WhiteElo "2805"]
[BlackElo "2965"]
[WhiteTeam "USA"]
[BlackTeam "USA"]
[WhiteClock "0:00:45"]
[BlackClock "0:01:15"]

1. e4 {[%clk 0:03:00]}  c5 {[%clk 0:03:00]} 2. c3 {[%clk 0:03:00]}  Nf6 {[%clk 0:02:58]} 3. e5 {[%clk 0:03:01]}  Nd5 {[%clk 0:02:59]} 4. Nf3 {[%clk 0:03:01]}  Nc6 {[%clk 0:02:58]} 5. Bc4 {[%clk 0:03:02]}  Nb6 {[%clk 0:02:58]} 6. Bb3 {[%clk 0:03:02]}  d5 {[%clk 0:02:58]} 7. exd6 {[%clk 0:03:03]}  Qxd6 {[%clk 0:02:58]} 8. d4 {[%clk 0:03:03]}  cxd4 {[%clk 0:02:57]} 9. Nxd4 {[%clk 0:03:04]}  Nxd4 {[%clk 0:02:55]} 10. cxd4 {[%clk 0:03:05]}  g6 {[%clk 0:02:55]} 11. Qf3 {[%clk 0:02:58]}  Be6 {[%clk 0:02:51]} 12. Bf4 {[%clk 0:02:52]}  Qd7 {[%clk 0:02:47]} 13. Be5 {[%clk 0:02:34]}  f6 {[%clk 0:02:44]} 14. Bg3 {[%clk 0:02:33]}  Bxb3 {[%clk 0:02:40]} 15. axb3 {[%clk 0:02:31]}  Qd5 {[%clk 0:02:36]} 16. Qe3 {[%clk 0:02:26]}  h5 {[%clk 0:02:31]} 17. Nc3 {[%clk 0:02:25]}  Qd7 {[%clk 0:02:29]} 18. h3 {[%clk 0:01:55]}  h4 {[%clk 0:02:28]} 19. Bf4 {[%clk 0:01:54]}  Rh5 {[%clk 0:02:23]} 20. O-O {[%clk 0:01:51]}  Nd5 {[%clk 0:02:22]} 21. Nxd5 {[%clk 0:01:43]}  Rxd5 {[%clk 0:02:23]} 22. Ra4 {[%clk 0:01:39]}  b5 {[%clk 0:02:16]} 23. Ra6 {[%clk 0:01:38]}  Kf7 {[%clk 0:02:16]} 24. Rc1 {[%clk 0:01:33]}  g5 {[%clk 0:02:07]} 25. Rc7 {[%clk 0:01:21]}  gxf4 {[%clk 0:01:50]} 26. Rxd7 {[%clk 0:01:19]}  fxe3 {[%clk 0:01:49]} 27. Rxd5 {[%clk 0:01:17]}  e2 {[%clk 0:01:49]} 28. Ra1 {[%clk 0:01:16]}  e5 {[%clk 0:01:30]} 29. Re1 {[%clk 0:01:06]}  Ke6 {[%clk 0:01:24]} 30. Rxb5 {[%clk 0:01:05]}  exd4 {[%clk 0:01:24]} 31. Rxe2+ {[%clk 0:01:05]}  Kf7 {[%clk 0:01:25]} 32. Rd5 {[%clk 0:01:03]}  Rb8 {[%clk 0:01:22]} 33. Rxd4 {[%clk 0:01:00]}  Rxb3 {[%clk 0:01:22]} 34. Rxh4 {[%clk 0:00:58]}  Bd6 {[%clk 0:01:22]} 35. Rh7+ {[%clk 0:00:57]}  Kg6 {[%clk 0:01:21]} 36. Rxa7 {[%clk 0:00:56]}  Be5 {[%clk 0:01:19]} 37. Ra3 {[%clk 0:00:47]}  Rb4 {[%clk 0:01:19]} 38. Rxe5 {[%clk 0:00:44]}  fxe5 {[%clk 0:01:15]} 39. Re3 {[%clk 0:00:45]} 1-0